bitfinex-derivatives/quotes_ETHF0:USTF0_20251216
["timestamp","ask_amount","ask_price","bid_price","bid_amount"]
[1765849126350,1.9358,2940.0,2939.5,16.07]
[1765849126543,1.9358,2940.0,2939.5,18.47]
[1765849127144,1.1776,2940.0,2939.9,0.7431]
[1765849127449,0.461,2940.5,2939.9,1.4597]
[1765849128550,1.1776,2940.5,2940.4,0.7431]
[1765849128749,0.72169952,2940.6,2940.5,0.7431]
[1765849128957,0.72169952,2940.6,2940.5,1.4597]
[1765849129154,0.00509952,2940.6,2940.5,1.4597]
[1765849129452,0.00509952,2940.6,2940.5,4.4133]
[1765849129657,0.00422691,2941.3,2941.2,1.4597]
[1765849129956,0.00422691,2941.3,2940.0,0.3531]
[1765849129957,1.47902691,2941.3,2940.1,10.883]
[1765849130158,1.47902691,2941.3,2940.1,13.723]
[1765849130357,1.47902691,2941.3,2940.1,2.84]
[1765849130553,0.46609952,2941.0,2940.4,0.00509951]
[1765849131256,0.46609952,2941.0,2940.4,2.60509951]
[1765849131458,0.46609952,2941.0,2940.4,0.00509951]
[1765849132058,1.9358,2940.5,2940.4,0.00509951]
[1765849132265,1.9358,2940.5,2939.0,0.4142]
[1765849132460,1.9358,2940.5,2939.4,2.8437177]
[1765849132661,1.9358,2940.5,2939.5,4.32474973]
[1765849132856,1.9358,2940.5,2939.5,6.72474973]
[1765849133360,0.94665699,2940.4,2939.5,6.72474973]
[1765849134167,0.94512974,2940.4,2939.5,6.72474973]
[1765849134366,0.94512974,2940.3,2939.5,6.72474973]
[1765849134569,0.94512974,2940.4,2939.5,6.72474973]
[1765849134760,0.94512974,2940.3,2939.5,6.72474973]
[1765849135070,0.94512974,2940.4,2939.5,6.72474973]
[1765849135261,0.94512974,2940.3,2939.5,6.72474973]
[1765849135462,0.94512974,2940.2,2939.5,6.72474973]
[1765849135661,0.94512974,2940.4,2939.5,6.72474973]
[1765849135862,0.94512974,2940.3,2939.5,6.72474973]
[1765849136063,0.94512974,2940.2,2939.5,6.72474973]
[1765849136264,0.94512974,2940.4,2939.5,6.72474973]
[1765849136567,0.94512974,2940.3,2939.5,6.72474973]
[1765849136768,0.94512974,2940.2,2939.5,6.72474973]
[1765849136967,0.461,2940.5,2939.5,6.72474973]
[1765849137165,1.4748,2939.6,2939.5,2.4]
[1765849137461,1.9358,2939.5,2939.4,0.0027177]
[1765849137862,2.88303719,2939.5,2938.5,0.4036]
[1765849138069,0.00509952,2939.3,2938.5,2.64]
[1765849138372,0.94723719,2939.2,2938.5,2.64]
[1765849138573,0.00509952,2939.3,2938.5,2.64]
[1765849138769,0.94726322,2939.2,2938.5,2.64]
[1765849138964,0.461,2939.0,2938.5,2.64384947]
[1765849139166,1.1776,2939.0,2938.9,0.7431]
[1765849139469,0.00306693,2939.2,2938.9,1.5497]
[1765849139660,1.66413687,2939.1,2939.0,0.7431]
[1765849139865,0.7166,2937.7,2936.0,0.4089]
[1765849140068,0.461,2938.5,2936.0,0.4089]
[1765849140069,2.26499497,2938.5,2937.9,0.7431]
[1765849140260,0.7166,2938.0,2937.1,4.47407551]
[1765849140465,0.94713169,2937.9,2937.8,0.7431]
[1765849140664,0.94713169,2937.9,2937.8,1.4597]
[1765849140864,0.94713169,2937.9,2937.8,1.46223069]
[1765849141066,1.66373169,2937.9,2937.8,0.00253069]
[1765849141265,0.00509952,2938.1,2938.0,0.7431]
[1765849141466,0.95314129,2938.1,2938.0,1.4597]
[1765849142268,0.00509952,2938.1,2938.0,1.4597]
[1765849142575,0.461,2939.0,2938.0,1.4597]
[1765849142576,0.94664586,2938.9,2938.0,3.8397]
[1765849142769,0.94664586,2938.8,2938.0,3.8397]
[1765849143074,0.461,2939.0,2938.6,0.7441]
[1765849143278,0.94675408,2938.9,2938.6,0.7441]
[1765849143469,0.00306693,2939.2,2939.1,0.7441]
[1765849143667,0.94980922,2939.2,2939.1,1.452]
[1765849144362,0.00306693,2939.2,2939.1,1.452]
[1765849144573,0.00306693,2939.2,2939.1,10.002]
[1765849144870,0.00509952,2939.4,2939.3,1.452]
[1765849145071,0.00509952,2939.4,2939.1,8.55]
[1765849145072,1.5034,2939.2,2939.1,4.34662523]
[1765849145274,0.7482,2939.2,2938.3,0.17018]
[1765849145468,0.94734182,2939.3,2938.3,2.76018]
[1765849145668,0.00356672,2939.3,2938.4,4.34662523]
[1765849145968,0.94728427,2939.2,2939.1,1.452]
[1765849146163,0.94728427,2939.2,2939.1,0.7441]
[1765849146570,0.94728427,2939.2,2938.1,5.81119]
[1765849146771,0.00356672,2939.3,2939.2,1.452]
[1765849146976,0.9499718,2939.3,2938.3,45.31397521]
[1765849147281,0.94640508,2939.2,2938.3,43.48]
[1765849147578,0.00356672,2939.3,2938.4,4.51397521]
[1765849147780,0.94647967,2939.2,2938.4,6.83397521]
[1765849148074,0.00356672,2939.3,2939.2,0.7441]
[1765849148273,0.95004506,2939.3,2939.2,1.452]
[1765849149673,0.00356672,2939.3,2939.2,1.452]
[1765849150575,0.00509952,2939.4,2939.2,4.142]
[1765849150781,0.94679147,2939.9,2939.8,0.7441]
[1765849151173,0.94679147,2939.9,2939.8,1.452]
[1765849151377,0.94679147,2940.4,2939.8,1.452]
[1765849151584,0.94679147,2940.3,2939.8,1.452]
[1765849151781,0.94679147,2940.2,2939.8,1.45709952]
[1765849151981,0.94679147,2940.1,2940.0,1.452]
[1765849152280,0.00919274,2940.4,2940.3,1.452]
[1765849152878,0.94679147,2941.1,2940.3,5.83468712]
[1765849153076,0.94679147,2941.1,2940.3,8.60468712]
[1765849153277,0.94679147,2941.1,2940.3,1.452]
[1765849153881,0.00509952,2941.0,2940.3,1.452]
[1765849155782,0.00509952,2941.0,2940.3,3.792]
[1765849156986,0.7482,2940.4,2940.1,40.8]
[1765849157188,0.00509952,2941.0,2940.3,0.7441]
[1765849157587,0.00509952,2941.0,2940.9,1.452]
[1765849158084,1e-08,2941.0,2940.9,4.172]
[1765849158291,1e-08,2941.0,2940.9,1.582]
[1765849158789,1e-08,2941.0,2940.9,1.452]
[1765849162193,1e-08,2941.0,2940.9,0.7441]
[1765849162385,1e-08,2941.0,2940.9,1.452]
[1765849163387,1.96280001,2941.0,2940.3,16.085]
[1765849163579,1.20760001,2941.0,2940.9,0.7441]
[1765849164197,1e-08,2941.0,2940.9,0.7441]
[1765849164388,1e-08,2941.0,2940.3,16.085]
[1765849164687,0.00435827,2941.1,2941.0,1.1815]
[1765849164991,0.4594,2941.8,2941.0,4.2894]
[1765849165191,0.4594,2941.8,2941.1,16.085]
[1765849165396,0.4594,2941.8,2941.7,0.7441]
[1765849165690,0.4594,2942.4,2941.7,0.7441]
[1765849165691,0.00509952,2942.0,2941.7,0.7441]
[1765849165893,0.00922043,2942.0,2941.9,0.7441]
[1765849166094,0.75742043,2942.0,2941.9,0.7441]
[1765849166289,0.00922043,2942.0,2941.9,0.7441]
[1765849166490,0.00922043,2942.0,2941.9,1.452]
[1765849167583,1.51262043,2942.0,2941.5,0.00509952]
[1765849167788,1.5034,2941.6,2941.5,0.00509952]
[1765849167991,0.7482,2941.6,2941.5,0.74919952]
[1765849169100,1.5034,2941.6,2941.5,0.00509952]
[1765849169590,0.4594,2941.5,2940.1,40.97008]
[1765849169800,0.4594,2941.5,2940.1,58.753]
[1765849169999,0.4594,2941.5,2940.3,4.46891706]
[1765849170199,0.4594,2941.5,2940.3,0.28]
[1765849170792,0.4594,2941.5,2940.6,0.00509952]
[1765849172391,1.4471,2940.7,2940.6,0.00509952]
[1765849174002,0.7329,2940.7,2940.6,0.00509952]
[1765849174699,0.7329,2940.7,2940.6,0.76809952]
[1765849174893,0.4252,2941.0,2940.6,0.76809952]
[1765849175098,0.17001,2941.3,2940.9,0.763]
[1765849175493,0.4594,2941.5,2940.9,0.763]
[1765849175898,0.4594,2941.5,2940.6,0.00509952]
[1765849176293,0.46862043,2942.0,2941.4,0.763]
[1765849178197,0.00922043,2942.0,2941.9,1.4653]
[1765849179196,0.4252,2943.0,2942.4,1.4653]
[1765849180197,0.43388947,2943.0,2942.4,1.47298096]
[1765849182402,0.43388947,2943.0,2942.4,0.00768096]
[1765849182403,1.4471,2942.5,2942.4,0.00768096]
[1765849182698,1.4471,2942.5,2941.4,0.17]
[1765849182903,0.4252,2942.4,2941.4,1.35]
[1765849183103,0.4252,2942.4,2941.4,5.84751892]
[1765849183903,0.4252,2942.4,2941.6,0.00509952]
[1765849187102,1.4471,2941.7,2941.6,0.00509952]
[1765849191207,1.8723,2941.5,2940.2,0.17007]
[1765849191407,1.8723,2941.5,2940.2,2.48007]
[1765849191613,1.8723,2941.5,2940.3,4.36883545]
[1765849191814,1.8723,2941.5,2940.2,0.17007]
[1765849192107,1.8723,2941.5,2940.2,1.25007]
[1765849192322,1.4471,2940.7,2940.6,0.00509952]
[1765849192515,1.45037761,2940.7,2940.6,0.00509952]
[1765849193209,0.00509952,2941.1,2941.0,1.4653]
[1765849194416,0.00946486,2941.1,2941.0,1.4653]
[1765849195212,0.4252,2941.0,2940.6,0.00509952]
[1765849195412,1.4471,2940.7,2940.6,0.00509952]
[1765849195816,0.7329,2940.7,2940.6,0.76809952]
[1765849196319,0.4252,2941.0,2940.6,1.47039952]
[1765849196516,0.00946486,2941.1,2941.0,1.4653]
[1765849197211,0.74236486,2941.1,2941.0,0.763]
[1765849197414,0.00946486,2941.1,2941.0,1.4653]
[1765849197712,0.00946486,2941.1,2941.0,1.9027]
[1765849200316,0.00946486,2941.1,2941.0,1.4653]
[1765849201715,1.4471,2940.7,2940.6,0.00509952]
[1765849202019,1.4471,2940.3,2939.0,0.4374]
[1765849202212,2.2887202,2940.2,2939.0,1.45]
[1765849202716,2.4587902,2940.2,2939.0,1.45]
[1765849202914,1.5156,2939.4,2939.3,0.00509952]
[1765849205014,0.4489,2939.5,2939.4,0.7568]
[1765849205215,0.761,2939.5,2939.4,0.7568]
[1765849205417,1.5156,2939.4,2939.3,0.00509952]
[1765849206615,0.761,2939.4,2939.3,0.00509952]
[1765849206823,0.4489,2940.0,2939.4,0.7568]
[1765849207023,0.761,2939.5,2939.4,0.7568]
[1765849207221,1.5156,2939.4,2939.3,0.00509952]
[1765849207423,1.5156,2939.1,2939.0,0.00258926]
[1765849208514,0.4489,2939.5,2938.1,0.17019]
[1765849208515,1.5156,2938.9,2938.1,0.17019]
[1765849208721,1.5156,2938.9,2938.1,1.96019]
[1765849209316,1.5156,2938.9,2938.1,1.79]
[1765849209625,0.761,2938.2,2938.1,1.7938508]
[1765849210028,1.5156,2938.2,2938.1,0.0038508]
[1765849210823,3.8043202,2938.2,2936.9,0.17026]
[1765849211018,3.8043202,2938.2,2936.9,2.60026]
[1765849211220,1.5156,2938.2,2936.9,2.60026]
[1765849211424,1.5156,2938.2,2937.0,7.06149154]
[1765849211625,1.5156,2938.2,2937.2,0.17024]
[1765849211826,1.5156,2938.2,2937.2,0.28347024]
[1765849212131,1.5156,2938.2,2937.2,1.40323024]
[1765849212326,1.5156,2937.3,2937.2,1.40323024]
[1765849212726,1.5156,2937.3,2937.2,0.00323024]
[1765849213126,0.45399952,2937.5,2937.2,0.76003024]
[1765849213430,0.00509952,2937.5,2937.4,1.5308]
[1765849214135,0.00509952,2937.5,2937.4,0.7568]
[1765849214335,0.761,2937.3,2937.2,0.00323024]
[1765849214633,1.5156,2937.3,2937.2,0.00323024]
[1765849214841,0.761,2937.3,2937.2,0.76003024]
[1765849215029,0.45399952,2937.5,2937.2,0.76003024]
[1765849215533,1.21499952,2937.5,2937.2,0.00323024]
[1765849216234,1.5156,2937.3,2937.2,0.01323024]
[1765849216530,1.5156,2937.3,2937.2,3.024e-05]
[1765849216735,7.68584,2937.3,2935.5,0.3878]
[1765849216924,0.4489,2937.0,2935.5,3.2648]
[1765849217134,0.4489,2937.0,2936.1,0.17031]
[1765849217328,0.45399952,2937.5,2936.9,0.7568]
[1765849217534,0.00509952,2937.5,2937.4,0.7568]
[1765849217734,0.00509952,2937.5,2937.4,3.9708]
[1765849218034,0.00509952,2937.5,2937.4,2.44410923]
[1765849218233,0.00509952,2937.5,2937.4,0.88090923]
[1765849218435,0.76609952,2937.5,2937.4,0.76090923]
[1765849218626,0.00509952,2937.5,2937.4,0.76090923]
[1765849218827,0.00509952,2937.5,2937.4,1.53490923]
[1765849219039,0.4489,2938.5,2937.5,0.3878]
[1765849219229,0.4489,2938.5,2937.5,3.2178]
[1765849219432,0.4489,2938.5,2937.5,0.51]
[1765849219635,0.4489,2938.5,2937.5,2.54]
[1765849219831,0.4489,2938.5,2937.5,1.09]
[1765849220036,0.4489,2938.5,2937.5,2.7]
[1765849220338,0.00510829,2938.3,2937.7,0.00510829]
[1765849221236,0.00510829,2938.3,2938.2,0.7568]
[1765849221439,0.00510829,2938.3,2937.7,0.00510829]
[1765849221440,0.76610829,2938.3,2937.7,0.00510829]
[1765849221735,0.76610829,2938.3,2937.7,1.18510829]
[1765849221736,1.5156,2937.8,2937.7,1.18510829]
[1765849222040,1.5156,2937.8,2937.7,0.00510829]
[1765849222736,0.00510829,2938.3,2937.9,0.7568]
[1765849223534,0.00510829,2938.3,2938.2,1.5308]
[1765849223731,0.76610829,2938.3,2937.9,0.1702]
[1765849224944,0.00510829,2938.3,2938.2,1.5308]
[1765849225139,0.00510829,2938.3,2938.2,4.3208]
[1765849225340,0.00510829,2938.3,2938.2,4.49099]
[1765849225544,0.05113827,2939.8,2938.2,4.49099]
[1765849225746,0.17011,2939.6,2938.2,2.13699]
[1765849226244,0.61901,2939.5,2938.2,0.92699]
[1765849226640,0.00510829,2938.8,2938.2,0.92699]
[1765849226841,0.00510829,2938.8,2938.7,1.5308]
[1765849227848,0.05113827,2939.8,2939.4,1.5308]
[1765849228944,0.761,2939.5,2939.3,0.00510829]
[1765849229740,0.0552255,2939.8,2939.4,0.7568]
[1765849230343,0.4489,2939.5,2939.3,0.76190829]
[1765849230547,0.761,2939.4,2939.3,0.76190829]
[1765849230857,1.5156,2939.4,2939.3,0.00510829]
[1765849231252,0.0552255,2939.8,2939.4,1.5308]
[1765849231452,1.00422954,2939.8,2939.4,1.5308]
[1765849232357,1.4662,2939.4,2939.3,0.00510829]
[1765849233156,8.41520404,2939.4,2938.1,0.17019]
[1765849233363,0.94900404,2939.3,2938.1,0.70019]
[1765849233658,0.94900404,2939.3,2938.1,0.53]
[1765849233659,1.4662,2938.2,2938.1,0.53]
[1765849234159,0.94900404,2938.9,2938.4,0.7464]
[1765849234355,0.94900404,2938.8,2938.4,0.7464]
[1765849234655,0.94900404,2938.8,2937.9,0.00510829]
[1765849234656,0.739,2938.5,2937.9,0.00510829]
[1765849234858,1.1905,2938.5,2937.9,1.08510829]
[1765849235857,0.739,2938.0,2937.9,1.08510829]
[1765849236254,0.00510829,2938.2,2937.9,1.83150829]
[1765849236459,0.00510829,2938.2,2938.1,0.7464]
[1765849236661,0.00510829,2938.2,2938.1,0.8064]
[1765849237263,0.00510829,2938.2,2938.1,1.5789]
[1765849238070,0.95124902,2938.9,2938.8,1.5189]
[1765849238368,0.95146402,2939.4,2938.8,1.5189]
[1765849238563,0.95146402,2939.3,2939.2,1.5189]
[1765849238864,1.69046402,2939.3,2938.3,4.95]
[1765849239066,0.95146402,2939.2,2938.3,7.46]
[1765849239362,0.00510829,2939.1,2939.0,1.5189]
[1765849240571,0.4515,2939.0,2937.5,0.437]
[1765849240767,0.4515,2939.0,2938.3,0.17018]
[1765849240964,0.4515,2939.0,2938.4,4.46804715]
[1765849241161,0.4515,2939.0,2938.3,0.17018]
[1765849242058,1.4662,2938.4,2938.3,0.17018]
[1765849242971,1.4662,2938.4,2937.7,0.17021]
[1765849243172,1.4662,2938.4,2937.9,0.89510829]
[1765849243561,1.9177,2938.0,2937.9,0.89510829]
[1765849243764,1.9177,2938.0,2937.9,0.00510829]
[1765849243973,1.9177,2938.0,2937.9,1e-08]
[1765849245964,0.4515,2938.5,2938.3,0.7464]
[1765849246168,1.1905,2938.5,2937.9,1e-08]
[1765849250779,1.9177,2938.5,2938.1,0.17019]
[1765849251082,0.739,2938.2,2937.9,1e-08]
[1765849252376,0.4515,2938.5,2938.1,0.7464]
[1765849252571,0.4515,2939.0,2938.4,0.7464]
[1765849252773,0.74410829,2939.1,2939.0,0.7464]
[1765849252976,0.00510829,2939.1,2939.0,1.5189]
[1765849254573,0.0552255,2939.8,2939.0,1.68904]
[1765849255681,0.00510829,2939.7,2939.0,1.68904]
[1765849255886,0.00510829,2939.7,2939.6,1.5189]
[1765849256180,0.00510829,2939.7,2939.6,1.52279021]
[1765849256380,0.4515,2940.5,2939.7,1.5189]
[1765849256578,0.4515,2941.0,2940.4,0.7464]
[1765849256769,1.1905,2940.5,2940.0,0.17008]
[1765849257079,0.4515,2940.5,2940.0,0.91648]
[1765849257580,0.45985238,2940.5,2940.0,0.92158829]
[1765849259076,0.45985238,2940.5,2940.0,0.75150829]
[1765849260379,0.739,2940.1,2940.0,0.00510829]
[1765849260582,1.4662,2940.1,2940.0,0.00510829]
[1765849261169,1.4662,2939.7,2939.6,0.00389021]
[1765849262380,0.45985238,2940.5,2939.9,1.5243]
[1765849262576,0.00835238,2940.5,2940.4,0.7721]
[1765849262877,0.4515,2941.5,2940.4,3.8243]
[1765849263088,0.4515,2941.5,2940.9,0.7721]
[1765849263783,0.4515,2941.5,2940.9,0.00510829]
[1765849263784,1.8989,2941.0,2940.9,0.00510829]
[1765849264576,0.46099317,2941.5,2940.9,0.77720829]
[1765849264776,1.19979317,2941.5,2940.9,0.00510829]
[1765849265687,0.00949317,2941.5,2941.4,0.7721]
[1765849265877,0.73759317,2941.5,2940.9,0.00510829]
[1765849266077,0.73759317,2941.5,2940.9,2.61510829]
[1765849266578,0.4622,2943.0,2942.0,0.16997]
[1765849266784,0.4622,2943.0,2941.7,4.08452186]
[1765849266979,0.4622,2943.0,2941.7,40.8]
[1765849267179,1.4367,2941.9,2941.8,4.48847972]
[1765849267381,0.4622,2942.4,2941.4,0.17]
[1765849267579,0.46474777,2942.4,2941.4,2.94327587]
[1765849267779,0.00509952,2942.2,2941.5,4.32426188]
[1765849267980,0.00509952,2942.2,2941.5,6.95426188]
[1765849268382,0.00509952,2942.2,2942.1,1.5243]
[1765849268985,0.00254777,2942.4,2942.3,1.5243]
[1765849269581,0.16985,2944.1,2942.3,4.0543]
[1765849269991,0.00336462,2943.2,2942.7,0.00509952]
[1765849270378,1.4367,2942.8,2942.7,0.00509952]
[1765849270584,0.00351832,2942.8,2942.7,0.77719952]
[1765849270786,1.44021832,2942.8,2942.7,0.00509952]
[1765849271678,7.44021832,2942.8,2941.4,0.00327587]
[1765849271886,1.4367,2941.5,2941.4,0.07327587]
[1765849272082,1.4367,2941.5,2941.4,0.00327587]
[1765849272888,0.4622,2941.2,2940.5,0.17005]
[1765849273088,0.4622,2941.2,2940.5,2.59005]
[1765849273289,1.8989,2940.6,2939.7,0.1701]
[1765849273485,0.4622,2941.2,2939.9,0.17009]
[1765849273684,0.4622,2941.2,2940.0,0.57128]
[1765849273891,0.00509952,2940.9,2940.3,0.00509952]
[1765849274092,0.00509952,2940.9,2940.3,0.21509952]
[1765849274793,0.00509952,2940.9,2940.3,0.11509952]
[1765849275494,0.00509952,2940.9,2940.3,1.53509952]
[1765849276699,0.00509952,2940.9,2940.3,1.52509952]
[1765849277487,0.00509952,2940.9,2940.3,0.00509952]
[1765849277488,1.4367,2940.4,2940.3,0.00509952]
[1765849278298,0.00509952,2940.9,2940.3,0.00509952]
[1765849280398,0.4622,2940.0,2939.0,0.17014]
[1765849280595,0.4622,2940.0,2939.0,2.59014]
[1765849280795,0.4622,2940.0,2939.1,4.33740481]
[1765849280994,0.4622,2940.0,2939.1,6.70740481]
[1765849281204,0.4622,2940.6,2939.9,0.7721]
[1765849281606,0.4622,2940.6,2940.0,0.00509952]
[1765849282496,1.8989,2940.0,2938.5,0.17017]
[1765849282692,1.8989,2940.0,2938.5,2.55017]
[1765849283003,1.8989,2940.0,2938.6,45.39950136]
[1765849283204,1.8989,2940.0,2938.6,47.90950136]
[1765849283598,1.8989,2940.0,2939.0,0.00509952]
[1765849283800,1.8989,2940.0,2939.0,2.77509952]
[1765849285500,0.4622,2940.0,2939.0,2.77509952]
[1765849285708,0.4622,2940.0,2939.0,0.02509952]
[1765849286804,0.4622,2940.0,2939.0,2.30509952]
[1765849287999,0.4622,2940.6,2939.1,4.4164777]
[1765849288204,0.4622,2940.6,2939.1,6.9564777]
[1765849289604,0.4622,2940.6,2939.4,0.437]
[1765849289803,0.4622,2940.6,2939.4,2.757]
[1765849290003,0.4622,2940.6,2939.4,7.587]
[1765849291210,0.00509952,2940.9,2940.5,0.7721]
[1765849291505,1.1712,2940.6,2940.0,0.17008]
[1765849291698,1.1712,2940.6,2939.5,40.8]
[1765849291898,1.1712,2940.6,2939.5,49.24876898]
[1765849292204,0.4431,2940.6,2939.5,49.24876898]
[1765849292401,0.00509952,2940.9,2940.5,0.7662]
[1765849292602,1.9123,2940.6,2940.0,16.19708]
[1765849292807,1.9123,2940.6,2940.0,18.65708]
[1765849293003,1.1554,2940.6,2940.0,18.65708]
[1765849293613,0.00509952,2940.9,2940.5,0.7662]
[1765849294011,0.00509952,2940.9,2940.0,16.59918]
[1765849294309,0.00509952,2940.9,2940.8,1.4669]
[1765849294509,0.00509952,2940.9,2940.8,1.47102359]
[1765849294901,0.70989952,2940.9,2940.8,0.77032359]
[1765849295108,1.46679952,2940.9,2940.8,0.00412359]
[1765849296604,0.00509952,2940.9,2940.8,0.77032359]
[1765849296805,0.00509952,2940.9,2940.8,1.47102359]
[1765849297106,0.70989952,2940.9,2940.8,0.00412359]
[1765849298099,1.46679952,2940.9,2940.8,0.00412359]
[1765849298302,0.00509952,2940.9,2940.8,1.47102359]
[1765849299812,0.00509952,2940.9,2940.8,0.77032359]
[1765849300208,0.00509952,2940.9,2940.8,1.47102359]
[1765849301120,0.0039746,2941.2,2941.1,1.4669]
[1765849301414,0.7048,2940.9,2940.8,0.17416359]
[1765849301713,0.0039746,2941.2,2940.8,0.17416359]
[1765849301714,0.0039746,2941.2,2940.8,4.21106359]
[1765849301906,0.0039746,2941.2,2941.1,1.4669]
[1765849302707,0.0039746,2941.2,2941.1,3.9069]
[1765849302899,2.19022545,2942.3,2941.3,1.4669]
[1765849303100,1.24498502,2942.3,2942.2,0.7662]
[1765849303313,1.94978502,2942.3,2942.2,0.7662]
[1765849303508,2.70668502,2942.3,2941.5,0.4149]
[1765849303812,0.00509952,2942.2,2940.7,0.17004]
[1765849304007,0.7048,2940.9,2940.8,0.19412359]
[1765849304212,1.4617,2940.9,2940.8,0.19412359]
[1765849304516,1.4617,2940.9,2940.8,0.00412359]
[1765849304809,1.4617,2940.7,2939.4,0.17012]
[1765849305005,1.4617,2940.7,2939.5,2.91501]
[1765849305212,1.4617,2940.7,2939.6,4.35651381]
[1765849305516,1.4617,2940.7,2939.6,6.93651381]
[1765849305714,0.00509952,2940.4,2939.9,0.00509952]
[1765849305909,0.00509952,2940.4,2939.9,0.30509952]
[1765849308914,0.70989952,2940.4,2940.3,0.7662]
[1765849309112,0.70989952,2940.4,2939.9,0.00509952]
[1765849309312,0.70989952,2940.4,2939.9,0.20509952]
[1765849310718,0.70989952,2940.4,2940.3,0.7662]
[1765849311018,1.9123,2940.0,2939.9,0.00509952]
[1765849311219,1.9167195,2940.0,2939.9,0.18509952]
[1765849311413,1.9167195,2940.0,2939.9,0.00509952]
[1765849312616,0.0044195,2940.0,2939.9,1.47199952]
[1765849313120,0.7092195,2940.0,2939.9,0.77129952]
[1765849313721,1.9167195,2940.0,2939.9,0.00509952]
[1765849314123,0.0044195,2940.0,2939.9,1.47199952]
[1765849315019,0.00509952,2940.4,2940.3,1.4669]
[1765849315923,0.00822928,2940.4,2940.3,1.4669]
[1765849317024,0.4506,2941.5,2940.9,1.4669]
[1765849317226,1.9123,2941.0,2940.3,4.64435848]
[1765849317425,0.4506,2941.5,2940.9,1.4669]
[1765849317920,0.45986494,2941.5,2940.9,1.4669]
[1765849318717,1.9123,2941.0,2940.4,0.17005]
[1765849318927,0.45986494,2941.5,2940.9,1.4669]
[1765849319520,0.45986494,2941.5,2941.4,0.7662]
[1765849319827,0.00926494,2941.5,2941.4,1.4669]
[1765849320123,0.00926494,2941.5,2941.4,0.7662]
[1765849320124,0.71406494,2941.5,2941.4,0.7662]
[1765849321320,0.00926494,2941.5,2941.4,1.4669]
[1765849323428,0.73656494,2941.5,2941.4,1.4669]
[1765849323634,0.00926494,2941.5,2941.4,1.4669]
[1765849324024,0.73656494,2941.5,2941.4,1.4669]
[1765849324224,1.92706494,2941.5,2941.4,0.7662]
[1765849324534,0.00926494,2941.5,2941.4,1.6904]
[1765849325030,1.92706494,2941.5,2941.4,0.7662]
[1765849325233,0.73656494,2941.5,2941.4,1.5204]
[1765849325523,0.00926494,2941.5,2941.4,1.5204]
[1765849326627,0.00926494,2941.5,2941.4,2.7104]
[1765849327125,0.00926494,2941.5,2941.4,4.0504]
[1765849327529,0.00926494,2941.5,2941.4,2.7504]
[1765849328028,0.73656494,2941.5,2941.4,2.7504]
[1765849328232,0.46826494,2941.5,2941.0,1.62622]
[1765849328420,0.46826494,2941.5,2941.0,4.0462]
[1765849328421,0.7273,2941.1,2941.0,4.0462]
[1765849328623,0.7273,2941.1,2941.0,1.7562]
[1765849328821,0.46826494,2941.5,2941.0,3.8462]
[1765849329027,1.92706494,2941.5,2941.0,2.39]
[1765849329228,0.7273,2941.1,2941.0,1.8962]
[1765849329431,0.46826494,2941.5,2941.0,1.8962]
[1765849329727,0.00926494,2941.5,2941.4,1.4562]
[1765849330029,1.46806494,2941.5,2941.4,0.702]
[1765849330231,1.46806494,2941.5,2940.7,2.46059062]
[1765849330232,1.92706494,2941.5,2940.7,9.39204]
[1765849330427,1.4588,2941.1,2941.0,0.702]
[1765849330729,1.4588,2941.1,2939.6,0.00267143]
[1765849330730,1.079,2940.0,2939.6,0.00267143]
[1765849330919,1.0688,2939.1,2939.0,0.4349]
[1765849331125,1.1832,2938.6,2938.5,0.17]
[1765849331428,1.1832,2938.6,2938.0,0.3929]
[1765849331429,1.1832,2938.1,2938.0,0.3929]
[1765849331731,1.1832,2938.1,2937.0,0.4349]
[1765849332028,0.5916,2937.6,2937.5,1.12340563]
[1765849332228,1.1662,2937.1,2936.5,0.4349]
[1765849332428,1.1662,2937.1,2936.5,3.2849]
[1765849332629,0.5831,2936.9,2936.8,1.90149371]
[1765849332830,1.1662,2936.9,2936.5,0.4349]
[1765849333127,1.1662,2936.9,2936.6,1.90149371]
[1765849333331,1.1662,2936.9,2936.6,3.36149371]
[1765849333735,0.5831,2936.9,2936.6,3.36149371]
[1765849333928,0.5831,2936.9,2936.7,1.90149371]
[1765849334826,2.30295575,2938.1,2936.7,1.90149371]
[1765849335031,2.30295575,2938.1,2936.7,2.62]
[1765849335336,2.30295575,2938.1,2936.7,0.86]
[1765849335835,2.30295575,2938.1,2936.7,2.55]
[1765849336838,2.30295575,2938.1,2936.8,4.44091766]
[1765849336839,0.00772918,2938.1,2936.8,4.44091766]
[1765849337032,0.00772918,2938.1,2936.8,7.07091766]
[1765849338642,0.00772918,2938.1,2938.0,1.4562]
[1765849339836,0.00772918,2938.1,2938.0,3.35769371]
[1765849340138,2.29522657,2939.3,2938.0,3.35769371]
[1765849340336,2.29522657,2938.9,2937.6,0.60512]
[1765849340541,2.29522657,2938.9,2937.6,2.63512]
[1765849340739,2.29522657,2938.9,2937.6,2.4649]
[1765849341244,1.1662,2938.1,2938.0,0.00509952]
[1765849341747,0.5831,2938.1,2938.0,0.00509952]
[1765849341936,0.00509952,2938.5,2938.0,2.60859323]
[1765849343241,0.00509952,2938.5,2938.2,0.4349]
[1765849343547,0.00509952,2938.5,2938.4,0.702]
[1765849343845,0.00509952,2938.5,2938.4,1.4562]
[1765849344246,0.00509952,2938.5,2938.2,0.4349]
[1765849344446,0.5831,2938.3,2938.2,0.4349]
[1765849344643,1.1662,2938.1,2938.0,0.00509952]
[1765849345038,1.1662,2938.1,2938.0,1.90659323]
[1765849345541,0.00509952,2938.5,2938.0,1.90659323]
[1765849345542,0.00509952,2938.5,2938.4,0.702]
[1765849345745,0.00509952,2938.5,2938.2,0.4349]
[1765849345942,0.00509952,2938.5,2938.2,2.33639371]
[1765849347147,0.00509952,2938.5,2938.4,0.702]
[1765849347347,0.00509952,2938.5,2938.2,2.33639371]
[1765849348150,0.00509952,2938.5,2938.4,1.4562]
[1765849348449,0.00509952,2938.5,2938.2,2.33639371]
[1765849348951,0.00509952,2938.5,2938.4,0.702]
[1765849349146,1e-08,2938.5,2938.4,1.4562]